fUSD/lending_fUSD_20240817
["ID","MTS","AMOUNT","RATE_DAILY","PERIOD"]
[335172061,1723931432006,-8529.42497305,0.000107,2]
[335172062,1723931432018,-684.71908266,0.000107,2]
[335172063,1723931432031,-570.81911327,0.000107,2]
[335172064,1723931432043,-2873.29181325,0.000107,2]
[335172065,1723931432054,-69807.62542097,0.000107,2]
[335172066,1723931432065,-1000.0,0.000107,2]
[335172067,1723931432075,-449.5209,0.000107,2]
[335172068,1723931432085,-299.99,0.000107,2]
[335172069,1723931432095,-300.0,0.000107,3]
[335172070,1723931432104,-244.0,0.000107,2]
[335172071,1723931432114,-34080.0869,0.000108,2]
[335172072,1723931432123,-442.3726,0.000108,2]
[335172073,1723931432132,-4301.345,0.000108,2]
[335172074,1723931432141,-150.0,0.000108,2]
[335172075,1723931432150,-758.0,0.000108,3]
[335172076,1723931432159,-948.65206145,0.00010888,2]
[335172077,1723931432168,-494.24606,0.0001089,2]
[335172078,1723931432177,-164.28740423,0.00010899,2]
[335172079,1723931432430,-164.28740423,0.00010899,2]
[335172080,1723931432443,-164.28740423,0.00010899,2]
[335172081,1723931432452,-164.28740423,0.00010899,2]
[335172082,1723931432461,-20549.63385268,0.000109,2]
[335172083,1723931432476,-994.87575444,0.000109,2]
[335172084,1723931432487,-865.31617129,0.000109,2]
[335172085,1723931432499,-4338.05792159,0.000109,2]
[335172086,1723931432508,-3000.0,0.000109,2]
[335172087,1723931432517,-250.71999573,0.000109,2]
[335172088,1723931432527,-722.95201061,0.000109,2]
[335172089,1723931432539,-277.04798939,0.000109,2]
[335172090,1723931432548,-164.28740423,0.000109,2]
[335172091,1723931432557,-61.57183533,0.000109,2]
[335172092,1723931432572,-513.00305707,0.000109,2]
[335172093,1723931432581,-484.20134983,0.000109,2]
[335172094,1723931432591,-5129.17085771,0.000109,2]
[335172095,1723931432600,-500.0,0.00010907,2]
[335172096,1723931432610,-500.0,0.00010958,2]
[335172097,1723931432620,-500.0,0.00010958,2]
[335172098,1723931432629,-500.0,0.00010958,2]
[335172099,1723931432638,-500.0,0.00010958,2]
[335172100,1723931432648,-580.65483022,0.00010958,2]
[335172101,1723931432657,-500.0,0.00010958,2]
[335172102,1723931432667,-219.57255907,0.00010958,2]
[335172103,1723931432676,-500.0,0.00010958,2]
[335172104,1723931432685,-500.0,0.00010958,2]
[335172105,1723931432696,-500.0,0.00010958,2]
[335172106,1723931432706,-500.0,0.00010958,2]
[335172107,1723931432715,-500.0,0.00010958,2]
[335172108,1723931432724,-500.0,0.00010958,2]
[335172109,1723931432734,-500.0,0.00010958,2]
[335172110,1723931432743,-500.0,0.00010958,2]
[335172111,1723931432752,-500.0,0.00010958,2]
[335172112,1723931432762,-500.0,0.00010958,2]
[335172113,1723931432773,-500.0,0.00010958,2]
[335172114,1723931432782,-500.0,0.00010958,2]
[335172115,1723931432793,-500.0,0.00010958,2]
[335172116,1723931432802,-500.0,0.00010958,2]
[335172117,1723931432811,-500.0,0.00010958,2]
[335172118,1723931432820,-500.0,0.00010958,2]
[335172119,1723931432829,-500.0,0.00010958,2]
[335172120,1723931432838,-500.0,0.00010958,2]
[335172121,1723931432847,-399.99999999,0.00010958,2]
[335172122,1723931432856,-500.0,0.00010958,2]
[335172123,1723931432865,-500.0,0.00010958,2]
[335172124,1723931432874,-150.0,0.00010959,2]
[335172125,1723931432883,-250.0,0.00010959,2]
[335172126,1723931432893,-700.0,0.00010971,2]
[335172127,1723931432902,-700.0,0.00010972,2]
[335172128,1723931432912,-200.0,0.00010973,2]
[335172129,1723931432921,-500.0,0.00010981,2]
[335172130,1723931432931,-328.0,0.00010985,2]
[335172131,1723931432940,-150.71639531,0.00010986,2]
[335172132,1723931432950,-500.0,0.00010992,2]
[335172133,1723931432959,-712.3085182,0.00010994,2]
[335172134,1723931432968,-24978.75042676,0.00010994,2]
[335172135,1723931432980,-270.03107511,0.00010994,2]
[335172136,1723931432991,-450.50241639,0.00010994,2]
[335172137,1723931433006,-635.97483763,0.00010994,2]
[335172138,1723931433018,-530.0,0.00010994,2]
[335172139,1723931433031,-438.97877864,0.00010994,2]
[335172141,1723931437702,-687.03,0.00010466,2]
[335172142,1723931437712,-180.54638522,0.00010994,2]
[335172143,1723931437766,-815.95389917,0.00010994,2]
[335172144,1723931437833,-1520.39891193,0.00010994,2]
[335172145,1723931437844,-563.31326908,0.00010994,2]
[335172146,1723931437855,-4962.13414257,0.00010994,2]
[335172147,1723931437864,-1482.86606834,0.00010994,2]
[335172148,1723931437875,-10978.45424228,0.00010994,2]
[335172149,1723931437899,-898.04379478,0.00010994,2]
[335172150,1723931437909,-3315.7232184,0.00010994,2]
[335172151,1723931437919,-430.58538114,0.00010997,2]
[335172152,1723931437929,-218.40329671,0.00010999,2]
[335172153,1723931437938,-1733.9147795,0.00010999,2]
[335172154,1723931437948,-420.0,0.00010999,2]
[335172155,1723931437958,-150.99456627,0.00010999,2]
[335172156,1723931437968,-1033.0,0.00011,2]
[335172157,1723931437977,-296926.78901494,0.00011,2]
[335172158,1723931437987,-1392587.09112827,0.00011,2]
[335172159,1723931437998,-329.43847413,0.00011,2]
[335172160,1723931438009,-7293.58596012,0.00011,2]
[335172161,1723931438020,-14870.92097106,0.00011,2]
[335172162,1723931438031,-37304.05035539,0.00011,2]
[335172163,1723931438043,-1114.47748706,0.00011,2]
[335172164,1723931438054,-620.0,0.00011,2]
[335172165,1723931438065,-353.36301051,0.00011,2]
[335172166,1723931438076,-275.96458678,0.00011,2]
[335172167,1723931438089,-5889.5837,0.00011,2]
[335172168,1723931438104,-602.6328,0.00011,2]
[335172169,1723931438116,-12133.84786113,0.00011,2]
[335172177,1723931439876,-1730.84596,0.00011,2]
[335172178,1723931439887,-353.59763287,0.00011,2]
[335172179,1723931439943,-12477.20885327,0.00011,2]
[335172180,1723931440011,-47213.35892577,0.00011,2]
[335172181,1723931440022,-56457.2370869,0.00011,2]
[335172182,1723931440080,-234552.22735007,0.00011,2]
[335172183,1723931440091,-1411.2,0.00011,2]
[335172193,1723931442746,-155.0,0.00010505,2]
[335172194,1723931442756,-92600.98019931,0.00011,2]
[335172195,1723931442767,-371406.70299584,0.00011,2]
[335172196,1723931442864,-1974.32367547,0.00011,2]
[335172201,1723931445775,-933.0,0.00011,2]
[335172202,1723931445785,-2862.64476265,0.00011,2]
[335172203,1723931445796,-3283.46653717,0.00011,2]
[335172204,1723931445807,-435.93874686,0.00011,2]
[335172205,1723931445819,-608.68038004,0.00011,2]
[335172206,1723931445835,-339615.55883646,0.00011,2]
[335172207,1723931445847,-188126.17105494,0.00011,2]
[335172208,1723931445962,-521.20184298,0.00011,2]
[335172209,1723931445973,-1102.43613394,0.00011,2]
[335172210,1723931445984,-1850.75450676,0.00011,2]
[335172211,1723931445995,-631.8388,0.00011,2]
[335172216,1723931532817,1265.7694,9.888e-05,2]
[335172219,1723931624380,3786.90191419,9.888e-05,2]
[335172220,1723931762968,574.26,8.219e-05,2]
[335172223,1723932047954,442.88138593,9.962e-05,2]
[335172229,1723932246474,579.45,8.219e-05,2]
[335172233,1723932419103,-1775.33,0.0001,2]
[335172234,1723932419125,-196.8,0.0001,2]
[335172235,1723932419146,-2530.6,0.0001,2]
[335172236,1723932419173,-1389.78332869,0.0001,2]
[335172237,1723932419194,-300.0,0.00010017,2]
[335172238,1723932419217,-23890.0,0.00010018,2]
[335172239,1723932419238,-250.0,0.00010037,2]
[335172240,1723932419260,-803.2,0.00010087,2]
[335172241,1723932419281,-170.82,0.00010103,2]
[335172242,1723932419305,-200.0,0.00010162,2]
[335172243,1723932419326,-579.45,0.00010478,2]
[335172244,1723932419348,-419.26533857,0.00010799,2]
[335172245,1723932419369,-166.89603944,0.00010799,2]
[335172246,1723932419390,-915.67055,0.0001089,2]
[335172247,1723932419415,-760.38691325,0.0001089,2]
[335172248,1723932419437,-150.0,0.00010899,2]
[335172249,1723932419458,-7500.0,0.000109,2]
[335172250,1723932419480,-3000.0,0.000109,2]
[335172251,1723932419501,-162.32777207,0.000109,2]
[335172252,1723932419522,-500.0,0.00010905,2]
[335172253,1723932419543,-500.0,0.00010953,2]
[335172254,1723932419565,-250.0,0.00010959,2]
[335172255,1723932419591,-200.0,0.00010973,2]
[335172256,1723932419611,-155.29412858,0.00010989,2]
[335172257,1723932419632,-962.80465455,0.00010993,2]
[335172258,1723932419653,-155.0,0.00010993,2]
[335172259,1723932419686,-720.9161907,0.00010994,2]
[335172260,1723932419708,-6115.7636512,0.00010994,2]
[335172261,1723932419729,-17565.3801403,0.00010994,2]
[335172262,1723932419750,-2258.5063815,0.00010994,2]
[335172263,1723932419772,-866.95738975,0.00010999,2]
[335172264,1723932419793,-155.0,0.00010999,2]
[335172265,1723932419814,-500.0,0.00010999,2]
[335172266,1723932419835,-500.0,0.00010999,2]
[335172267,1723932419854,-500.0,0.00010999,2]
[335172268,1723932419874,-500.0,0.00010999,2]
[335172269,1723932419894,-560.49838269,0.00010999,2]
[335172270,1723932419916,-500.0,0.00010999,2]
[335172271,1723932419938,-256.34010548,0.00010999,2]
[335172272,1723932420129,-500.0,0.00010999,2]
[335172273,1723932420151,-500.0,0.00010999,2]
[335172274,1723932420175,-500.0,0.00010999,2]
[335172275,1723932420197,-500.0,0.00010999,2]
[335172276,1723932420217,-922.0,0.00011,2]
[335172277,1723932420241,-282616.94265807,0.00011,2]
[335172278,1723932420265,-1047579.71741672,0.00011,2]
[335172279,1723932420286,-1337.557901,0.00011,2]
[335172280,1723932420310,-3340496.80379273,0.00011,2]
[335172281,1723932420331,-1865362.59938822,0.00011,2]
[335172282,1723932420351,-2000.0,0.00011,2]
[335172283,1723932420370,-2000.0,0.00011,2]
[335172284,1723932420394,-3029468.10830036,0.00011,2]
[335172285,1723932420419,-944858.41962634,0.00011,2]
[335172286,1723932420443,-1782094.08644507,0.00011,2]
[335172287,1723932420464,-803654.96365248,0.00011,2]
[335172288,1723932420483,-201.0,0.00011,2]
[335172289,1723932420505,-201.0,0.00011,2]
[335172290,1723932420525,-201.0,0.00011,2]
[335172291,1723932420546,-201.0,0.00011,2]
[335172292,1723932420566,-204.0,0.00011,2]
[335172293,1723932420589,-204.0,0.00011,2]
[335172294,1723932420610,-204.0,0.00011,2]
[335172295,1723932420631,-204.0,0.00011,2]
[335172296,1723932420652,-204.0,0.00011,2]
[335172297,1723932420675,-204.0,0.00011,2]
[335172298,1723932420696,-204.0,0.00011,2]
[335172299,1723932420720,-3906113.14326113,0.00011,2]
[335172300,1723932420741,-259.0,0.00011,2]
[335172301,1723932420765,-4640568.66659111,0.00011,2]
[335172331,1723932631931,-200.0,0.00010122,2]
[335172332,1723932631940,-611.69217936,0.00010174,2]
[335172333,1723932631951,-1394.56782064,0.00010174,2]
[335172334,1723932631960,-300.0,0.00010898,2]
[335172335,1723932631969,-300.0,0.00010898,2]
[335172336,1723932631978,-150.0,0.00010899,2]
[335172337,1723932631988,-15600.63054221,0.00010899,2]
[335172338,1723932631998,-2759.24924359,0.00010899,2]
[335172339,1723932632008,-166.31999249,0.00010899,2]
[335172340,1723932632016,-73.43076392,0.00010899,2]
[335172341,1723932632027,-123.16700936,0.00010899,2]
[335172342,1723932632036,-147.09886291,0.000109,2]
[335172343,1723932632122,-284.36635236,0.000109,2]
[335172344,1723932632133,-271.05628702,0.000109,2]
[335172347,1723932637933,-1559.90801093,0.000109,2]
[335172348,1723932640307,-425.30520426,0.000109,2]
[335172349,1723932640320,-594.22,0.000109,2]
[335172350,1723932640335,-15077.92506832,0.000109,2]
[335172351,1723932640346,-13140.9007,0.000109,2]
[335172352,1723932640357,-7500.0,0.000109,2]
[335172353,1723932640366,-3237.1381,0.000109,2]
[335172354,1723932640376,-71170.5904,0.000109,2]
[335172355,1723932640385,-245000.0,0.000109,2]
[335172356,1723932640395,-1000.0,0.000109,2]
[335172357,1723932640406,-2500.0,0.000109,2]
[335172358,1723932640417,-1000.0,0.000109,2]
[335172359,1723932640426,-18359.8797858,0.000109,2]
[335172360,1723932640437,-196.59777327,0.000109,2]
[335172361,1723932640449,-306.26001172,0.00010958,2]
[335172362,1723932640461,-2900.0,0.0001097,2]
[335172363,1723932640471,-200.0,0.00010973,2]
[335172364,1723932640482,-500.0,0.00010991,2]
[335172365,1723932640494,-155.0,0.00010993,2]
[335172366,1723932640505,-2149.7359587,0.00010994,2]
[335172367,1723932640515,-72315.1472222,0.00010994,2]
[335172368,1723932640525,-7000.7988367,0.00010994,2]
[335172369,1723932640534,-500.0,0.00010998,2]
[335172370,1723932640544,-500.0,0.00010998,2]
[335172371,1723932640554,-500.0,0.00010998,2]
[335172372,1723932640565,-311.39110582,0.00010998,2]
[335172373,1723932640574,-500.0,0.00010998,2]
[335172374,1723932640585,-478.24,0.00010998,2]
[335172375,1723932640594,-500.0,0.00010998,2]
[335172376,1723932640607,-500.0,0.00010998,2]
[335172377,1723932640619,-500.0,0.00010998,2]
[335172378,1723932640628,-500.0,0.00010998,2]
[335172379,1723932640637,-500.0,0.00010998,2]
[335172380,1723932640646,-500.0,0.00010998,2]
[335172381,1723932640656,-500.0,0.00010998,2]
[335172382,1723932640666,-500.0,0.00010998,2]
[335172383,1723932640675,-500.0,0.00010998,2]
[335172384,1723932640685,-500.0,0.00010998,2]
[335172385,1723932640695,-500.0,0.00010998,2]
[335172386,1723932640705,-500.0,0.00010998,2]
[335172387,1723932640715,-500.0,0.00010998,2]
[335172388,1723932640726,-500.0,0.00010998,2]
[335172389,1723932640736,-500.0,0.00010998,2]
[335172390,1723932640746,-500.0,0.00010998,2]
[335172391,1723932640756,-500.0,0.00010998,2]
[335172392,1723932640765,-500.0,0.00010998,2]
[335172393,1723932640774,-794.53,0.00010998,2]
[335172394,1723932640784,-794.53,0.00010998,2]
[335172395,1723932640793,-794.53,0.00010998,2]
[335172396,1723932640805,-794.53,0.00010998,2]
[335172397,1723932640814,-794.53,0.00010998,2]
[335172398,1723932640823,-794.53,0.00010998,2]
[335172399,1723932640832,-794.53,0.00010998,2]
[335172400,1723932640841,-794.53,0.00010998,2]
[335172401,1723932640850,-794.53,0.00010998,2]
[335172402,1723932640859,-500.0,0.00010998,2]
[335172403,1723932640868,-500.0,0.00010998,2]
[335172404,1723932640877,-500.0,0.00010998,2]
[335172405,1723932640886,-500.0,0.00010998,2]
[335172406,1723932640896,-500.0,0.00010998,2]
[335172407,1723932640905,-500.0,0.00010998,2]
[335172408,1723932640914,-500.0,0.00010998,2]
[335172409,1723932640925,-500.0,0.00010998,2]
[335172410,1723932640935,-500.0,0.00010998,2]
[335172411,1723932640945,-141308.47132904,0.00010999,2]
[335172412,1723932640954,-9405.06,0.00010999,2]
[335172413,1723932640963,-9405.06,0.00010999,2]
[335172414,1723932640972,-9405.06,0.00010999,2]
[335172415,1723932640982,-500.0,0.00010999,2]
[335172416,1723932640992,-9405.06,0.00010999,2]
[335172417,1723932641001,-500.0,0.00010999,2]
[335172418,1723932641013,-9405.06,0.00010999,2]
[335172419,1723932641023,-500.0,0.00010999,2]
[335172420,1723932641034,-9405.06,0.00010999,2]
[335172421,1723932641043,-500.0,0.00010999,2]
[335172422,1723932641054,-9405.06,0.00010999,2]
[335172423,1723932641064,-500.0,0.00010999,2]
[335172424,1723932641073,-9405.06,0.00010999,2]
[335172425,1723932641084,-500.0,0.00010999,2]
[335172426,1723932641094,-9405.06,0.00010999,2]
[335172427,1723932641105,-500.0,0.00010999,2]
[335172428,1723932641116,-9405.06,0.00010999,2]
[335172429,1723932641127,-500.0,0.00010999,2]
[335172430,1723932641137,-9405.06,0.00010999,2]
[335172431,1723932641146,-500.0,0.00010999,2]
[335172432,1723932641157,-9405.06,0.00010999,2]
[335172433,1723932641168,-500.0,0.00010999,2]
[335172434,1723932641177,-9405.06,0.00010999,2]
[335172435,1723932641187,-9405.06,0.00010999,2]
[335172436,1723932641196,-500.0,0.00010999,2]
[335172437,1723932641206,-9405.06,0.00010999,2]
[335172438,1723932641215,-9405.06,0.00010999,2]
[335172439,1723932641225,-641.0,0.00010999,2]
[335172440,1723932641234,-9405.06,0.00010999,2]
[335172441,1723932641244,-9405.06,0.00010999,2]
[335172442,1723932641254,-9405.06,0.00010999,2]
[335172443,1723932641263,-9405.06,0.00010999,2]
[335172444,1723932641273,-9405.06,0.00010999,2]
[335172445,1723932641282,-9405.06,0.00010999,2]
[335172446,1723932641292,-9405.06,0.00010999,2]
[335172447,1723932641302,-9405.27,0.00010999,2]
[335172448,1723932641311,-500.0,0.00010999,2]
[335172449,1723932641321,-500.0,0.00010999,2]
[335172450,1723932641331,-500.0,0.00010999,2]
[335172451,1723932641340,-469.3,0.00010999,2]
[335172452,1723932641350,-500.0,0.00010999,2]
[335172453,1723932641359,-500.0,0.00010999,2]
[335172454,1723932641369,-500.0,0.00010999,2]
[335172455,1723932641378,-500.0,0.00010999,2]
[335172456,1723932641387,-512.4985491,0.00010999,2]
[335172457,1723932641396,-500.0,0.00010999,2]
[335172458,1723932641405,-3438.52,0.00010999,2]
[335172459,1723932641415,-500.0,0.00010999,2]
[335172460,1723932641424,-3438.52,0.00010999,2]
[335172461,1723932641434,-500.0,0.00010999,2]
[335172462,1723932641443,-3438.52,0.00010999,2]
[335172463,1723932641452,-500.0,0.00010999,2]
[335172464,1723932641461,-3438.52,0.00010999,2]
[335172465,1723932641470,-500.0,0.00010999,2]
[335172466,1723932641480,-500.0,0.00010999,2]
[335172467,1723932641489,-3438.52,0.00010999,2]
[335172468,1723932641498,-3438.52,0.00010999,2]
[335172469,1723932641508,-500.0,0.00010999,2]
[335172470,1723932641517,-3438.52,0.00010999,2]
[335172471,1723932641527,-500.0,0.00010999,2]
[335172472,1723932641536,-3438.52,0.00010999,2]
[335172473,1723932641545,-500.0,0.00010999,2]
[335172474,1723932641556,-500.0,0.00010999,2]
[335172475,1723932641565,-4511.92,0.00010999,2]
[335172476,1723932641574,-3438.52,0.00010999,2]
[335172477,1723932641584,-500.0,0.00010999,2]
[335172478,1723932641593,-500.0,0.00010999,2]
[335172479,1723932641604,-4511.92,0.00010999,2]
[335172480,1723932641615,-3438.52,0.00010999,2]
[335172481,1723932641625,-500.0,0.00010999,2]
[335172482,1723932641636,-500.0,0.00010999,2]
[335172483,1723932641645,-4511.92,0.00010999,2]
[335172484,1723932641655,-500.0,0.00010999,2]
[335172485,1723932641664,-500.0,0.00010999,2]
[335172486,1723932641674,-4511.92,0.00010999,2]
[335172487,1723932641684,-635.5910889,0.00010999,2]
[335172488,1723932641693,-3438.52,0.00010999,2]
[335172489,1723932641702,-500.0,0.00010999,2]
[335172490,1723932641712,-4511.92,0.00010999,2]
[335172491,1723932641721,-3438.52,0.00010999,2]
[335172492,1723932641731,-500.0,0.00010999,2]
[335172493,1723932641740,-4511.92,0.00010999,2]
[335172494,1723932641750,-500.0,0.00010999,2]
[335172495,1723932641759,-3438.52,0.00010999,2]
[335172496,1723932641769,-4511.92,0.00010999,2]
[335172497,1723932641778,-500.0,0.00010999,2]
[335172498,1723932641787,-3438.52,0.00010999,2]
[335172499,1723932641796,-4511.92,0.00010999,2]
[335172500,1723932641806,-500.0,0.00010999,2]
[335172501,1723932641816,-3438.52,0.00010999,2]
[335172502,1723932641826,-4511.92,0.00010999,2]
[335172503,1723932641835,-500.0,0.00010999,2]
[335172504,1723932641845,-3438.52,0.00010999,2]
[335172505,1723932641854,-4511.92,0.00010999,2]
[335172506,1723932641863,-3438.52,0.00010999,2]
[335172507,1723932641873,-4511.92,0.00010999,2]
[335172508,1723932641883,-500.0,0.00010999,2]
[335172509,1723932641893,-3438.52,0.00010999,2]
[335172510,1723932641903,-3438.52,0.00010999,2]
[335172511,1723932641914,-4511.92,0.00010999,2]
[335172512,1723932641924,-500.0,0.00010999,2]
[335172513,1723932641935,-512.77738581,0.00010999,2]
[335172514,1723932641945,-500.0,0.00010999,2]
[335172515,1723932641955,-3438.52,0.00010999,2]
[335172516,1723932641965,-4511.92,0.00010999,2]
[335172517,1723932641975,-500.0,0.00010999,2]
[335172518,1723932641984,-3438.52,0.00010999,2]
[335172519,1723932641994,-273.95,0.00010999,2]
[335172520,1723932642003,-4511.92,0.00010999,2]
[335172521,1723932642013,-3438.52,0.00010999,2]
[335172522,1723932642022,-4511.92,0.00010999,2]
[335172523,1723932642031,-3438.52,0.00010999,2]
[335172524,1723932642040,-4511.92,0.00010999,2]
[335172525,1723932642049,-3438.68,0.00010999,2]
[335172526,1723932642059,-4511.92,0.00010999,2]
[335172527,1723932642068,-4511.92,0.00010999,2]
[335172528,1723932642078,-4511.92,0.00010999,2]
[335172529,1723932642087,-4511.92,0.00010999,2]
[335172530,1723932642096,-500.0,0.00010999,2]
[335172531,1723932642105,-4511.92,0.00010999,2]
[335172532,1723932642115,-4511.92,0.00010999,2]
[335172533,1723932642124,-4511.92,0.00010999,2]
[335172534,1723932642133,-4512.10464438,0.00010999,2]
[335172535,1723932642142,-500.0,0.00010999,2]
[335172536,1723932642152,-500.0,0.00010999,2]
[335172537,1723932642163,-500.0,0.00010999,2]
[335172538,1723932642172,-500.0,0.00010999,2]
[335172539,1723932642181,-500.0,0.00010999,2]
[335172540,1723932642190,-15531.48,0.00010999,2]
[335172541,1723932642199,-500.0,0.00010999,2]
[335172542,1723932642208,-15531.48,0.00010999,2]
[335172543,1723932642217,-500.0,0.00010999,2]
[335172544,1723932642226,-15531.48,0.00010999,2]
[335172545,1723932642235,-500.0,0.00010999,2]
[335172546,1723932642244,-15531.48,0.00010999,2]
[335172547,1723932642253,-500.0,0.00010999,2]
[335172548,1723932642263,-15531.48,0.00010999,2]
[335172549,1723932642272,-500.0,0.00010999,2]
[335172550,1723932642282,-15531.48,0.00010999,2]
[335172551,1723932642291,-15531.48,0.00010999,2]
[335172552,1723932642301,-15531.48,0.00010999,2]
[335172553,1723932642310,-500.0,0.00010999,2]
[335172554,1723932642319,-15531.48,0.00010999,2]
[335172555,1723932642328,-207.85,0.00010999,2]
[335172556,1723932642338,-15531.48,0.00010999,2]
[335172557,1723932642347,-15531.48,0.00010999,2]
[335172558,1723932642356,-15531.48,0.00010999,2]
[335172559,1723932642366,-15531.48,0.00010999,2]
[335172560,1723932642375,-500.0,0.00010999,2]
[335172561,1723932642384,-500.0,0.00010999,2]
[335172562,1723932642393,-15531.48,0.00010999,2]
[335172563,1723932642403,-500.0,0.00010999,2]
[335172564,1723932642412,-500.0,0.00010999,2]
[335172565,1723932642421,-15531.48,0.00010999,2]
[335172566,1723932642431,-500.0,0.00010999,2]
[335172567,1723932642440,-500.0,0.00010999,2]
[335172568,1723932642449,-15531.48,0.00010999,2]
[335172569,1723932642458,-500.0,0.00010999,2]
[335172570,1723932642467,-500.0,0.00010999,2]
[335172571,1723932642477,-15531.48,0.00010999,2]
[335172572,1723932642486,-500.0,0.00010999,2]
[335172573,1723932642496,-429.62,0.00010999,2]
[335172574,1723932642505,-15531.48,0.00010999,2]
[335172575,1723932642514,-500.0,0.00010999,2]
[335172576,1723932642524,-15531.48,0.00010999,2]
[335172577,1723932642534,-500.0,0.00010999,2]
[335172578,1723932642543,-500.0,0.00010999,2]
[335172579,1723932642553,-15531.48,0.00010999,2]
[335172580,1723932642563,-501.63,0.00010999,2]
[335172581,1723932642573,-15531.48,0.00010999,2]
[335172582,1723932642583,-15531.48,0.00010999,2]
[335172583,1723932642592,-15531.48,0.00010999,2]
[335172584,1723932642602,-500.0,0.00010999,2]
[335172585,1723932642614,-15531.70839134,0.00010999,2]
[335172586,1723932642624,-6472.4,0.00010999,2]
[335172587,1723932642634,-6472.4,0.00010999,2]
[335172588,1723932642644,-6472.4,0.00010999,2]
[335172589,1723932642655,-6472.4,0.00010999,2]
[335172590,1723932642665,-6472.4,0.00010999,2]
[335172591,1723932642677,-795.22,0.00010999,2]
[335172592,1723932642689,-6472.4,0.00010999,2]
[335172593,1723932642701,-795.22,0.00010999,2]
[335172594,1723932642713,-6472.4,0.00010999,2]
[335172595,1723932642722,-795.22,0.00010999,2]
[335172596,1723932642901,-795.22,0.00010999,2]
[335172597,1723932642913,-6472.4,0.00010999,2]
[335172598,1723932642923,-6472.4,0.00010999,2]
[335172599,1723932642933,-795.22,0.00010999,2]
[335172600,1723932642943,-6472.4,0.00010999,2]
[335172601,1723932642953,-795.22,0.00010999,2]
[335172602,1723932642962,-6472.4,0.00010999,2]
[335172603,1723932642972,-500.0,0.00010999,2]
[335172604,1723932642982,-795.22,0.00010999,2]
[335172605,1723932642991,-6472.4,0.00010999,2]
[335172606,1723932643001,-454.98,0.00010999,2]
[335172607,1723932643011,-795.22,0.00010999,2]
[335172608,1723932643021,-6472.4,0.00010999,2]
[335172609,1723932643032,-795.22,0.00010999,2]
[335172610,1723932643041,-6472.4,0.00010999,2]
[335172611,1723932643052,-795.22,0.00010999,2]
[335172612,1723932643061,-6472.4,0.00010999,2]
[335172613,1723932643070,-795.22,0.00010999,2]
[335172614,1723932643080,-6472.4,0.00010999,2]
[335172615,1723932643090,-795.22,0.00010999,2]
[335172616,1723932643100,-6472.4,0.00010999,2]
[335172617,1723932643109,-795.22,0.00010999,2]
[335172618,1723932643118,-500.0,0.00010999,2]
[335172619,1723932643128,-795.22,0.00010999,2]
[335172620,1723932643137,-508.62559545,0.00010999,2]
[335172621,1723932643147,-500.0,0.00010999,2]
[335172622,1723932643156,-795.22,0.00010999,2]
[335172623,1723932643165,-500.0,0.00010999,2]
[335172624,1723932643174,-795.22,0.00010999,2]
[335172625,1723932643184,-500.0,0.00010999,2]
[335172626,1723932643193,-795.22,0.00010999,2]
[335172627,1723932643203,-500.0,0.00010999,2]
[335172628,1723932643212,-795.22,0.00010999,2]